Cogmind - Beta 15 @@@ ROGUE MODE // 2025.07.02 @ 18:32:11 Player: Aaron Result: Destroyed by S-10 Pest with Light Assault Rifle Performance ------------- Evolutions (2) 1000 Regions Visited (7) 1400 Robots Destroyed (61) 305 Value Destroyed (2619) 2619 Prototype IDs (25) 500 Alien Tech Used (0) 0 Bonus (1286) 1286 TOTAL SCORE: 7110 Bonus ------- High Alert Combat Kills 292 Follower Combat Kills 32 Entered Garrisons 200 Used RIF Installer 500 Aligned with FarCom 300 Friendly Fire -38 Cogmind --------- Core Integrity 0/550 Matter 56/300 Energy 43/100 System Corruption 52% Temperature Cool (9) Movement Core (200) Ox3 Location -8/Materials Parts ------- > --- POWER (1) -------- (None) > --- PROPULSION (3) --- (None) > --- UTILITY (4) ------ Medium Storage Unit Targeting Computer ECM Suite Relay Coupler [NC] (2) > --- WEAPON (3) ------- (None) > --- INVENTORY (10) --- Gravmag System Authchip [R/NC] Authchip [R/Combat] Authchip [R/Combat] Authchip [R/Combat] Authchip [R/Combat] Relay Coupler [Swarmer] (35) Relay Coupler [Brawler] (31) Latent Energy Streamer Maul Peak State ------------ > --- POWER ------------ Improved Ion Engine > --- PROPULSION ------- Aluminum Leg Improved Aluminum Leg Improved Aluminum Leg > --- UTILITY ---------- Improved Heat Sink Medium Storage Unit Targeting Computer Reaction Control System > --- WEAPON ----------- Latent Energy Streamer Gauss Rifle Gauss Rifle > --- INVENTORY -------- Light Nuclear Core Aluminum Leg Aluminum Leg Authchip [R/Combat] Authchip [R/Combat] Authchip [R/Combat] Particle Gun Particle Gun Rocket Launcher Datajack [Rating: 35] Favorites ----------- Power Ion Engine Engine Ion Engine Power Core Light Nuclear Core Propulsion Improved Aluminum Leg Leg Improved Aluminum Leg Wheel Wheel Hover Unit Gravmag System Utility Medium Storage Unit Device Improved Heat Sink Storage Medium Storage Unit Processor Targeting Computer Hackware Relay Coupler [NC] Protection Light Armor Plating Weapon Gauss Rifle Energy Gun Particle Gun Energy Cannon Latent Energy Streamer Ballistic Gun Gauss Rifle Launcher Rocket Launcher Special Weapon Remote Datajack Impact Weapon Maul Slashing Weapon Mining Claw Special Melee Weapon Improved Datajack Build | -11 -10 -10 -10 -9 -8 -8 -8 ------- Run | Yrd Mat Min Exi Min Mat Gar Mat Slots Evolved 4 | . . . . . 4 . . Power . | . . . . . . . . Propulsion 1 | . . . . . 1 . . Utility 2 | . . . . . 2 . . Weapon 1 | . . . . . 1 . . Parts Attached 66 | 9 10 8 . 1 5 21 12 Power 8 | 1 2 1 . . . 3 1 Engine 5 | 1 1 . . . . 2 1 Core 3 | . 1 1 . . . 1 . Reactor . | . . . . . . . . Propulsion 18 | 4 3 3 . . . 5 3 Treads . | . . . . . . . . Leg 11 | 2 3 3 . . . 3 . Wheel 5 | 2 . . . . . . 3 Hover 2 | . . . . . . 2 . Flight . | . . . . . . . . Utility 19 | 2 3 2 . 1 2 5 4 Device 8 | 1 . 1 . . 1 4 1 Storage 3 | 1 . 1 . . . . 1 Processor 3 | . 2 . . . . 1 . Hackware 2 | . . . . . . . 2 Protection 3 | . 1 . . 1 1 . . Artifact . | . . . . . . . . Weapon 21 | 2 2 2 . . 3 8 4 Energy Gun 10 | . 2 1 . . 1 4 2 Energy Cannon 2 | . . 1 . . 1 . . Ballistic Gun 4 | 2 . . . . . 2 . Ballistic Cannon . | . . . . . . . . Launcher 1 | . . . . . . 1 . Special Weapon 1 | . . . . . . 1 . Impact Weapon 1 | . . . . . . . 1 Slashing Weapon 1 | . . . . . 1 . . Piercing Weapon . | . . . . . . . . Special Melee Weapon 1 | . . . . . . . 1 Unidentified Prototypes . | . . . . . . . . Corrupted Parts 2 | . . . . . . 2 . System Corruption 5 | . . . . . . 5 . Parts Lost 26 | . 3 . . . 3 9 11 Power 4 | . 1 . . . . 1 2 Propulsion 8 | . 1 . . . . 3 4 Utility 5 | . 1 . . . . 4 . Weapon 9 | . . . . . 3 1 5 Highest Loss Streak 5 | . 3 . . . 3 3 5 To Critical Strikes . | . . . . . . . . Average Backups 7 | . 3 7 10 9 7 8 8 Power . | . . . 1 1 1 1 . Propulsion 1 | . 1 2 3 3 2 1 . Utility 2 | . 1 1 1 1 1 2 7 Weapon 2 | . . 2 5 3 2 2 1 Tool/Special . | . . . . . . . . Unused Backups 16 | . 1 . . . . 8 7 Power 1 | . . . . . . 1 . Propulsion 2 | . 1 . . . . 1 . Utility 11 | . . . . . . 4 7 Weapon 1 | . . . . . . 1 . Tool/Special 1 | . . . . . . 1 . Average Slot Usage (%) 91 | . 96 97 71 99 96 91 84 Engine 6 | . 9 . . . 8 8 8 Core 4 | . 4 13 14 14 . . . Leg 21 | . 28 28 28 28 27 22 . Wheel 1 | . . . . . . . 8 Hover 2 | . . . . . . 2 9 Device 10 | . 4 13 14 4 12 12 5 Storage 9 | . 3 13 14 14 9 9 10 Processor 6 | . 10 1 . . . 8 9 Hackware 1 | . . . . . . . 8 Protection 2 | . 7 . . 9 12 . . Energy Gun 9 | . 9 16 . 27 13 6 9 Energy Cannon 2 | . . 8 . . 5 3 1 Ballistic Gun 9 | . 18 . . . . 15 2 Peak Build Rating 35 | 9 12 17 14 18 31 35 29 Average Rating 20 | 5 9 15 13 16 27 27 23 On Entrance 15 | . 9 12 13 14 16 30 26 Naked Turns . | . . . . . . . . Heaviest Build 40 | 13 13 22 16 24 40 40 37 Greatest Support 41 | 26 26 28 28 28 41 41 32 Greatest Overweight (x) 3 | . . . . . . 3 3 Average Overweight (x) . | . . . . . . . . Largest Inventory Capacity 10 | 8 8 10 10 10 10 10 10 Average Capacity 9 | 7 5 8 10 10 10 10 10 Most Carried 10 | . 5 10 10 10 10 10 10 Average Carried 7 | . 3 7 9 9 7 8 8 Final Capacity 10 | 8 5 10 10 10 10 10 10 Final Carried 10 | . 4 10 10 10 6 10 10 Class Distribution -------------------- 39% | Scavenger-Skirmisher 34% | Mutant 22% | Scavenger-Mutant Dominant Class ---------------- Mutant | -10/Materials Scavenger-Mutant | -10/Mines Mutant | -10/Exiles Scavenger-Mutant | -9/Mines Mutant | -8/Materials Scavenger-Skirmisher | -8/Garrison Mutant | -8/Materials Resources | -11 -10 -10 -10 -9 -8 -8 -8 ----------- Run | Yrd Mat Min Exi Min Mat Gar Mat Matter Collected 1866 | 313 164 113 . 68 115 954 139 Remotely . | . . . . . . . . Salvage Created 2342 | 116 468 216 . . 417 1011 114 Parts 125 | 11 23 15 . . 15 57 4 Haulers Intercepted 3 | . 2 . . . 1 . . Recyclers Shooed 2 | 2 . . . . . . . Parts Field Recycled . | . . . . . . . . Retrieved Matter . | . . . . . . . . Parts Self-Destructed . | . . . . . . . . Prevented . | . . . . . . . . Kills | -11 -10 -10 -10 -9 -8 -8 -8 ------- Run | Yrd Mat Min Exi Min Mat Gar Mat Combat Hostiles Destroyed 45 | . 6 7 . . 5 25 2 Melee 1 | . . . . . 1 . . Guns 32 | . 5 7 . . 1 19 . AOE 10 | . 1 . . . 2 6 1 Classes Destroyed 14 | 3 4 1 . . 4 2 . Worker 2 | 1 . . . . 1 . . Builder 2 | . . . . . 2 . . Tunneler 2 | 2 . . . . . . . Hauler 3 | . 2 . . . 1 . . Recycler 3 | 1 1 1 . . . . . Mechanic 1 | . 1 . . . . . . Operator 1 | . . . . . 1 . . Watcher 2 | . 1 . . . 1 . . Swarmer 8 | . . 5 . . . 3 . Cutter 2 | . . . . . . 2 . Grunt 22 | . 6 2 . . 3 11 . Sentry 5 | . . . . . 1 4 . Hunter 5 | . . . . . 1 2 2 Programmer 3 | . . . . . . 3 . Best Kill Streak 5 | 2 5 3 . . 3 5 2 Combat Bots Only 5 | . 4 3 . . 2 5 2 Max Kills in Single Turn 3 | 1 1 1 . . 3 2 1 Gunslinging . | . . . . . . . . Exploded 2 | . 1 . . . 2 2 1 Melee 1 | . . . . . 1 . . Uniques/NPCs Destroyed . | . . . . . . . . Combat | -11 -10 -10 -10 -9 -8 -8 -8 -------- Run | Yrd Mat Min Exi Min Mat Gar Mat Hostile Shots Fired 353 | . 46 32 . . 59 91 125 Missed 115 | . 11 5 . . 17 34 48 Hits 238 | . 35 27 . . 42 57 77 Melee 1 | . . . . . . 1 . Projectile 237 | . 35 27 . . 42 56 77 AOE 2 | . . . . . . 2 . Critical Strikes 5 | . 1 . . . . 2 2 Damage Taken 3608 | . 574 268 . . 623 1075 1068 Core 753 | . 110 93 . . 37 189 324 Absorbed by Shields . | . . . . . . . . Core Remaining (%) 59 | 100 . . . 18 . . . Volleys Fired 190 | 14 44 15 . . 11 79 27 Largest 3 | 2 2 2 . . 3 3 1 Hottest 195 | 40 130 130 . . 195 154 60 Shots Fired 392 | 27 87 31 . . 25 191 31 Gun 343 | 27 87 27 . . 22 176 4 Cannon 19 | . . 4 . . 3 10 2 Launcher 5 | . . . . . . 5 . Special 25 | . . . . . . . 25 Kinetic 226 | 27 74 . . . . 123 2 Thermal 113 | . 13 31 . . 22 47 . Explosive 5 | . . . . . . 5 . Electromagnetic 23 | . . . . . 3 16 4 Robot Hit Streak 14 | 7 12 9 . . 8 14 7 Robot Miss Streak 7 | 1 5 2 . . 3 7 1 Penetration Max 1 | . . . . . . 1 . Secondary Targets 6 | . 1 1 . . 1 3 . Max Gunslinging Chain 1 | . 1 1 . . 1 1 . Shots Hit Robots 220 | 18 54 18 . . 22 80 28 Core Hits 112 | 8 26 10 . . 14 51 3 Critical Kills 1 | . . . . . . 1 . Critical Parts Destroyed 2 | . . . . . . 2 . Critical Strikes 5 | . . . . . . 5 . Burn 2 | . . . . . . 2 . Destroy 3 | . . . . . . 3 . Melee Attacks 16 | . . . . . 5 . 11 Impact 5 | . . . . . . . 5 Slashing 5 | . . . . . 5 . . Piercing . | . . . . . . . . Sneak Attacks 5 | . . . . . . . 5 Combat Hostiles . | . . . . . . . . Follow-up Attacks . | . . . . . . . . Damage Inflicted 5667 | 154 807 325 . . 1579 2437 365 Guns 2892 | 154 499 307 . . 275 1657 . Cannons 74 | . . 18 . . 24 17 15 Explosions 2600 | . 308 . . . 1184 763 345 Melee 96 | . . . . . 96 . . Ramming 5 | . . . . . . . 5 Kinetic 1879 | 154 406 . . . . 1319 . Thermal 1278 | . 401 325 . . 275 277 . Explosive 340 | . . . . . 41 299 . Electromagnetic 2069 | . . . . . 1167 542 360 Impact . | . . . . . . . . Slashing 96 | . . . . . 96 . . Piercing . | . . . . . . . . Highest Corruption 52 | . 1 1 1 1 9 45 52 Average Corruption 19 | . 1 1 1 1 5 29 48 Corruption Purged . | . . . . . . . . Corruption Blocked . | . . . . . . . . Effects 156 | . 2 5 4 2 3 96 44 Message Errors 36 | . . . 2 . 2 24 8 Matter Fused 36 | . . 1 2 2 . 22 9 Heat Flow Errors 19 | . 1 . . . . 12 6 Energy Discharges 10 | . . . . . . 6 4 Parts Rejected 1 | . . . . . . . 1 Parts Fused 2 | . . . . . . 2 . Data Loss (minor) 12 | . . . . . . 7 5 Data Loss (major) 9 | . . 2 . . . 7 . Misfires 8 | . . 1 . . . 3 4 Alerts 3 | . . 1 . . . 1 1 Misdirections 6 | . . . . . . . 6 Weapon Failures 14 | . 1 . . . 1 12 . Overload Shots . | . . . . . . . . Overflow Damage 118 | . 63 . . . 37 18 . Projectiles . | . . . . . . . . Explosions 118 | . 63 . . . 37 18 . Melee . | . . . . . . . . Knockbacks . | . . . . . . . . Impact . | . . . . . . . . Kinetic . | . . . . . . . . Secondary . | . . . . . . . . Self-Inflicted Damage 249 | . 101 . . . . 75 73 Shots 3 | . 1 . . . . 1 1 Rammed 1 | . . . . . . . 1 Targets Rammed 1 | . . . . . . . 1 Kicked . | . . . . . . . . Crushed . | . . . . . . . . Highest Temperature 480 | . 480 264 . . 429 231 242 Average Temperature 116 | . 154 109 . . 208 67 83 Received Heat Transfer 945 | . 282 78 . . 81 351 153 Effects 6 | . 5 . . . 1 . . Shutdowns 2 | . 1 . . . 1 . . Energy Bleed 3 | . 3 . . . . . . Damage (minor) 1 | . 1 . . . . . . Siege Activations . | . . . . . . . . Martial Activations . | . . . . . . . . Shielding Activations . | . . . . . . . . Robots Disrupted . | . . . . . . . . Combat Hostiles . | . . . . . . . . Robots Corrupted 2 | . . . . . 1 . 1 Combat Hostiles 2 | . . . . . 1 . 1 Parts Fried 9 | . . . . . 8 . 1 Impact Corruptions . | . . . . . . . . Robots Melted . | . . . . . . . . Combat Hostiles . | . . . . . . . . Parts Melted 1 | . 1 . . . . . . Heat Transferred 2653 | . 472 740 . . 666 775 . Parts Sabotaged . | . . . . . . . . Parts Stolen . | . . . . . . . . Parts Stripped . | . . . . . . . . Power Chain Reactions . | . . . . . . . . Latent Energy Used 2153 | . . . . . 600 1285 268 LE Corruption 38 | . . . . . 9 24 5 Alert | -11 -10 -10 -10 -9 -8 -8 -8 ------- Run | Yrd Mat Min Exi Min Mat Gar Mat Maximum Alert Level 4 | . . . . . 1 4 2 Low Security (%) 46 | 100 100 100 . 100 88 4 . Level 1 9 | . . . . . 11 22 . Level 2 27 | . . . . . . 33 100 Level 3 15 | . . . . . . 38 . Level 4 . | . . . . . . 1 . Level 5 . | . . . . . . . . High Security . | . . . . . . . . Max Security . | . . . . . . . . Peak Influence 1171 | 10 111 109 . . 243 1171 570 Initial 570 | . 3 26 . . . 157 570 Average 347 | 1 26 34 . . 93 640 505 Influence Increases 2194 | 20 278 230 . . 338 1104 224 Destroy 0b10 Robot/C 940 | . 120 180 . . 100 500 40 Destroy 0b10 Robot/NC 85 | 20 25 5 . . 35 . . Destroy Leader 150 | . 36 40 . . 34 20 20 Allied During Kill 5 | . . 5 . . . . . Successful Hack 63 | . 17 . . . . 26 20 Select Force Hacks 60 | . . . . . 30 . 30 Disable Machine 165 | . 30 . . . 45 30 60 Anti-Garrison Action 350 | . . . . . . 350 . Destroy Structure 241 | . 20 . . . 49 118 54 Partial Spotted 30 | . . . . . 30 . . Lose Combat Pursuer 105 | . 30 . . . 15 60 . Influence Decreases 1814 | 15 215 298 . . 95 176 1015 Entered New Map 731 | . 2 42 . . . 86 601 Time Decay 793 | 15 183 236 . . 65 . 294 Lost Part 260 | . 30 . . . 30 90 110 Lost Ally 30 | . . 20 . . . . 10 Squads Dispatched 9 | . 1 . . . 3 . 5 Investigation 3 | . . . . . 1 . 2 Extermination . | . . . . . . . . Reinforcement 5 | . 1 . . . 1 . 3 Assault . | . . . . . . . . Garrison 1 | . . . . . 1 . . Intercept . | . . . . . . . . Searches Triggered . | . . . . . . . . Construction Impeded 1 | . . . . . 1 . . Haulers Reinforced . | . . . . . . . . Active Scanning Responses . | . . . . . . . . Cargo Convoy Interrupts . | . . . . . . . . Stealth | -11 -10 -10 -10 -9 -8 -8 -8 --------- Run | Yrd Mat Min Exi Min Mat Gar Mat Distress Signals 5 | . . . . . 2 . 3 Communications Jammed . | . . . . . . . . Distress Signals . | . . . . . . . . Times Spotted 97 | . 19 11 . . 11 22 34 Peak Tracking Total 14 | . 5 5 . . 6 5 14 Tactical Retreats 10 | . 2 . . . 1 2 5 Traps | -11 -10 -10 -10 -9 -8 -8 -8 ------- Run | Yrd Mat Min Exi Min Mat Gar Mat Traps Triggered 8 | . 1 . . . . 7 . Indirectly . | . . . . . . . . Trap Hack Attempts . | . . . . . . . . Triggered . | . . . . . . . . Disarmed . | . . . . . . . . Reprogrammed . | . . . . . . . . Reused . | . . . . . . . . Traps Extracted . | . . . . . . . . Installed . | . . . . . . . . Triggered . | . . . . . . . . Machines | -11 -10 -10 -10 -9 -8 -8 -8 ---------- Run | Yrd Mat Min Exi Min Mat Gar Mat Machines Disabled 15 | . 2 . . . 3 6 4 Max in Single Turn 3 | . 2 . . . 1 1 3 Garrison Relay 3 | . . . . . . 3 . Machines Repaired . | . . . . . . . . Machines Dismantled . | . . . . . . . . Machines Sabotaged . | . . . . . . . . Overloaded Fab Kills . | . . . . . . . . Hacking | -11 -10 -10 -10 -9 -8 -8 -8 --------- Run | Yrd Mat Min Exi Min Mat Gar Mat Machines Accessed 19 | . 6 . 2 . 3 1 7 Terminals 10 | . 4 . . . 1 1 4 Fabricators . | . . . . . . . . Repair Stations 3 | . 1 . . . . . 2 Recycling Units 1 | . 1 . . . . . . Scanalyzers 2 | . . . . . 1 . 1 Garrison Access 1 | . . . . . 1 . . Total Hacks 62 | . 12 . 2 . 10 5 33 Successful 43 | . 6 . 2 . 8 2 25 Failed 19 | . 6 . . . 2 3 8 Catastrophic 2 | . 1 . . . . 1 . Database Lockouts . | . . . . . . . . Manual 20 | . 6 . 1 . 3 4 6 Terminals 23 | . 7 . . . 4 5 7 Fabricators . | . . . . . . . . Repair Stations 8 | . 1 . . . . . 7 Recycling Units 4 | . 4 . . . . . . Scanalyzers 23 | . . . . . 4 . 19 Garrison Access 2 | . . . . . 2 . . Terminal Hacks 6 | . 1 . 2 . 2 . 1 Record 1 | . . . 1 . . . . Robot Analysis 1 | . 1 . . . . . . Prototype ID Bank 1 | . . . . . 1 . . Locate Traps 1 | . . . . . . . 1 Zone Layout 1 | . . . . . 1 . . Proto ID Catalog 1 | . . . 1 . . . . Fabricator Hacks . | . . . . . . . . Repair Station Hacks 5 | . . . . . . . 5 Scan Component 4 | . . . . . . . 4 Repair 1 | . . . . . . . 1 Recycling Unit Hacks 1 | . 1 . . . . . . Report Inventory 1 | . 1 . . . . . . Scanalyzer 18 | . . . . . 3 . 15 Insert Component 8 | . . . . . 2 . 6 Analyze 10 | . . . . . 1 . 9 Garrison Access Hacks 1 | . . . . . 1 . . Unlock Access 1 | . . . . . 1 . . Unauthorized Hacks 12 | . 4 . . . 2 2 4 Terminals 7 | . 1 . . . 1 2 3 Track 1 | . . . . . . 1 . Botnet 6 | . 1 . . . 1 1 3 Fabricators . | . . . . . . . . Repair Stations 1 | . 1 . . . . . . Mechanics 1 | . 1 . . . . . . Recycling Units 2 | . 2 . . . . . . Monitor 1 | . 1 . . . . . . Recyclers 1 | . 1 . . . . . . Scanalyzers 2 | . . . . . 1 . 1 Extract 2 | . . . . . 1 . 1 Garrison Access . | . . . . . . . . Data Cores Recovered 1 | . . . . . 1 . . Used . | . . . . . . . . Hacking Detections 12 | . 4 . . . 3 1 4 Full Trace Events 1 | . . . . . . . 1 Feedback Events . | . . . . . . . . Feedback Blocked . | . . . . . . . . Robot Schematics Acquired . | . . . . . . . . Robots Built . | . . . . . . . . Authchips . | . . . . . . . . Time . | . . . . . . . . Total Robot Build Rating . | . . . . . . . . Part Schematics Acquired 11 | . . . . . 5 . 6 Parts Built . | . . . . . . . . Authchips . | . . . . . . . . Time . | . . . . . . . . Total Part Build Rating . | . . . . . . . . Parts Repaired 1 | . . . . . . . 1 Time 53 | . . . . . . . 53 Parts Recycled . | . . . . . . . . Recycled Matter . | . . . . . . . . Retrieved Matter . | . . . . . . . . Retrieved Components . | . . . . . . . . Parts Scanalyzed 6 | . . . . . 1 . 5 Part Schematics Acquired 6 | . . . . . 1 . 5 Parts Damaged 1 | . . . . . . . 1 Bothacking | -11 -10 -10 -10 -9 -8 -8 -8 ------------ Run | Yrd Mat Min Exi Min Mat Gar Mat Used RIF Installer 1 | . . . . . . 1 . Robots Hacked 12 | . . . . . . . 12 Non-combat 12 | . . . . . . . 12 Combat . | . . . . . . . . Robot Hacks Applied 19 | . . . . . . . 19 no_distress 2 | . . . . . . . 2 ignore_repairs 1 | . . . . . . . 1 map_walls 2 | . . . . . . . 2 randomize_corridors 1 | . . . . . . . 1 drop_inventory 2 | . . . . . . . 2 deconstruct_bot 4 | . . . . . . . 4 block_reporting 1 | . . . . . . . 1 map_route 1 | . . . . . . . 1 mark_security 1 | . . . . . . . 1 link_fov 1 | . . . . . . . 1 overload_power 2 | . . . . . . . 2 formatsys_high 1 | . . . . . . . 1 Relay Couplers Released 12 | . . . . . . 12 . Machine Destruction 12 | . . . . . . 12 . Attached 2 | . . . . . . . 2 Fabnet Peak Effective % . | . . . . . . . . Robots Rewired . | . . . . . . . . Allies Hacked . | . . . . . . . . Hacks Repelled . | . . . . . . . . Allies | -11 -10 -10 -10 -9 -8 -8 -8 -------- Run | Yrd Mat Min Exi Min Mat Gar Mat Total Allies 3 | . . 1 . 1 . . 1 Largest Group 1 | . . 1 . 1 1 . 1 Highest-Rated Group 31 | . . 31 . 31 31 . 13 Highest-Rated Ally 31 | . . 31 . 31 31 . 13 Total Orders . | . . . . . . . . Ally Attacks 3 | . . 2 . . 1 . . Total Damage 64 | . . 42 . . 22 . . Kills 3 | . . 2 . . 1 . . Allies Corrupted . | . . . . . . . . Allies Melted . | . . . . . . . . Intel | -11 -10 -10 -10 -9 -8 -8 -8 ------- Run | Yrd Mat Min Exi Min Mat Gar Mat Active Infowar (turns) 1277 | 13 796 31 . . 16 26 395 Optics 83 | . 52 31 . . . . . Terrain 297 | 13 242 . . . 16 26 . T.N.C. 578 | . 554 24 . . . . . ECM 395 | . . . . . . . 395 Robot Analysis Total 1 | . 1 . . . . . . Derelict Logs Recovered 2 | . . 1 . 1 . . . Drone Launches . | . . . . . . . . Drone Recoveries . | . . . . . . . . Exploration | -11 -10 -10 -10 -9 -8 -8 -8 ------------- Run | Yrd Mat Min Exi Min Mat Gar Mat Turns Passed 4841 | 117 799 692 370 206 193 1819 645 Spaces Moved 3097 | 51 498 524 308 168 92 1026 430 Core 2 | 2 . . . . . . . Treads . | . . . . . . . . Legs 2485 | 43 498 524 308 168 92 852 . Wheels 228 | 6 . . . . . . 222 Hover 382 | . . . . . . 174 208 Flight . | . . . . . . . . Fastest Speed 50 | 50 120 120 120 120 120 116 83 Average Speed 122 | 113 120 120 120 120 120 131 115 Slowest Speed 240 | 120 120 120 120 120 120 240 240 Overloaded Moves . | . . . . . . . . Propulsion Burnouts . | . . . . . . . . Robots Hopped . | . . . . . . . . Potential Cave-ins . | . . . . . . . . Cave-ins Triggered . | . . . . . . . . Exploration Rate (%) 54 | 4 80 99 64 48 13 93 35 Regions Visited 7 Branch Regions 3 Pre-discovered Areas 1 | . . 1 . . . . . Known Exits Taken 2 | . . . . 1 1 . . Unknown Exits Taken 4 | 1 1 1 1 . . . . Scrap Searched 3 | . . 1 . 2 . . . Spaces Dug 26 | . . . . . . 21 5 Terrain Destroyed 220 | . 18 . . . 48 95 59 Melee 5 | . . . . . . . 5 Projectile 12 | . . . . . . 12 . AOE 203 | . 18 . . . 48 83 54 Terrain Rammed . | . . . . . . . . Walls Destroyed . | . . . . . . . . Machines Disabled . | . . . . . . . . Actions | -11 -10 -10 -10 -9 -8 -8 -8 --------- Run | Yrd Mat Min Exi Min Mat Gar Mat Total 3784 | 84 625 555 309 172 142 1341 556 Wait 270 | 10 58 1 . . 16 132 53 Move 3091 | 50 497 523 307 167 92 1025 430 Hop . | . . . . . . . . Pick Up 36 | . 6 3 1 1 2 21 2 Fast Attach 36 | 8 4 1 . 1 2 10 10 Attach 29 | . 3 . . 2 8 6 10 Detach 18 | . 2 2 . 1 1 2 10 Swap 34 | 1 6 8 . . 3 16 . Drop 38 | 1 5 2 1 . 2 25 2 Fire 190 | 14 44 15 . . 11 79 27 Melee 16 | . . . . . 5 . 11 Ram 1 | . . . . . . . 1 Kick . | . . . . . . . . Crush . | . . . . . . . . Escape Stasis 25 | . . . . . . 25 . Rewire . | . . . . . . . . Trap . | . . . . . . . . Miscellaneous . | . . . . . . . . Route ------- -11/Scrapyard -10/Materials (discovered 4 exits: [*Mat x2] / [*Min x2]) -10/Mines (discovered 4 exits: [*Mat x2] / *Exi / [*Sub]) -10/Exiles (discovered 2 exits: [*Min x2]) -9/Mines -8/Materials -8/Garrison (discovered 3 exits: *Mat x3) -8/Materials History --------- Turn | Location | Event 11 | -11/Scrapyard | Discovered new exit (range 15) 118 | -11/Scrapyard | Entered Materials 282 | -10/Materials | Discovered new exit (range 16) 317 | -10/Materials | Build established: Mutant 598 | -10/Materials | Discovered new exit (range 11) 671 | -10/Materials | Discovered new exit (range 9) 760 | -10/Materials | Lost 3 parts (1p1n1u) 822 | -10/Materials | Discovered new exit (range 8) 917 | -10/Materials | Entered Mines 924 | -10/Mines | Core integrity fell below 50% 932 | -10/Mines | Escorted by a lone wolf Derelict 952 | -10/Mines | Learned location of Storage (-9) 963 | -10/Mines | Discovered new exit (range 7) 1052 | -10/Mines | Received a Rocket Launcher from a helpful Derelict 1125 | -10/Mines | Learned Materials emergency access door positions 1169 | -10/Mines | Build established: Scavenger-Mutant 1319 | -10/Mines | Core integrity fell below 20% 1333 | -10/Mines | A weapon hastily lodged in a ceiling crevice suddenly fell to the ground 1384 | -10/Mines | Discovered new exit (range 8) 1436 | -10/Mines | Discovered new exit (range 14) 1537 | -10/Mines | Deemed a non-threat by the Exiles lab entrance 1540 | -10/Mines | Discovered new exit (range 5) 1609 | -10/Mines | Entered Exiles 1629 | -10/Exiles | Discovered new exit (range 15) 1666 | -10/Exiles | Met 8R-AWN 1687 | -10/Exiles | Met EX-HEX 1725 | -10/Exiles | Met EX-BIN 1740 | -10/Exiles | Aligned with FarCom system 1741 | -10/Exiles | Given EX-Vault access code 1769 | -10/Exiles | Opened EX-Vault 1826 | -10/Exiles | Build established: Mutant 1832 | -10/Exiles | Found Latent Energy Streamer 1856 | -10/Exiles | Warned to stay clear of 0b10 Research branches 1892 | -10/Exiles | Met EX-DEC 1966 | -10/Exiles | Discovered new exit (range 14) 1979 | -10/Exiles | Left Exiles lab with Latent Energy Streamer 1979 | -10/Exiles | Entered Mines 1982 | -9/Mines | Received a Mining Laser from a helpful Derelict 2113 | -9/Mines | Found DCF Scrap (12 items) 2126 | -9/Mines | Identified exit to Materials 2185 | -9/Mines | Entered Materials 2185 | -8/Materials | Accompanied by 1 ally 2185 | -8/Materials | Evolved 4 slots: Propulsion x1, Utility x2, Weapon x1 2281 | -8/Materials | Garrison activated, responded to threat 2378 | -8/Materials | Identified exit to Garrison 2378 | -8/Materials | Entered Garrison 2383 | -8/Garrison | Lost 3 parts (3w) 2444 | -8/Garrison | Triggered checkpoint 2454 | -8/Garrison | System corruption reached 10% 2484 | -8/Garrison | Lost 3 parts (1n2u) 2663 | -8/Garrison | Triggered checkpoint 2798 | -8/Garrison | Build established: Scavenger-Skirmisher 2874 | -8/Garrison | Triggered checkpoint 2956 | -8/Garrison | Discovered new exit (range 8) 3004 | -8/Garrison | Triggered checkpoint 3036 | -8/Garrison | Garrison Relay disabled 3147 | -8/Garrison | Triggered checkpoint 3203 | -8/Garrison | Discovered new exit (range 11) 3416 | -8/Garrison | System corruption reached 30% 3478 | -8/Garrison | Triggered checkpoint 3484 | -8/Garrison | Garrison Relay disabled 3612 | -8/Garrison | Triggered checkpoint 3701 | -8/Garrison | Discovered new exit (range 8) 3796 | -8/Garrison | Triggered checkpoint 3952 | -8/Garrison | Installed Relay Interface Framework 4006 | -8/Garrison | Garrison Relay disabled 4197 | -8/Garrison | Entered Materials 4534 | -8/Materials | Core integrity fell below 50% 4714 | -8/Materials | Repaired Broken Imp. Datajack? 4812 | -8/Materials | Lost 3 parts (1p2w) 4821 | -8/Materials | Core integrity fell below 20% 4842 | -8/Materials | Destroyed by S-10 Pest with Light Assault Rifle Last Messages --------------- power. ALERT: Hostiles spotted, dispatching reinforcements to Terminal M010. System corrupted: Matter fused (-6). Penetrated by Slug. C-30 ARC bursts open, deploying its payload. S-10 Pest unfolds itself. Slug penetrates Wall. Penetrated by Slug. Imp. Datajack destroyed. Wheel destroyed. Penetrated by Slug. Hadron Collector disabled. System corrupted: Component data lost. Lgt. Ion Engine destroyed. System corrupted: Component data lost. Hadron Collector disabled. M-13 Machinist repairs A-02 Transporter. Arm. Wheel destroyed. Wheel destroyed. Map ----- +----------------------------------------------------+ | ## """"" ##/###### ### /# #???? "" | | ## %=*""" #?# #?# ########## #???? ## | | # !%! ### ### ###?######/##### #? | | ##%!%[ # [ #?# ## #?? | | ?# ="####"## #?#= ## #?? | | ?# ## ## # """ """ #?# # ??? | | ?# ## "" ## # """ """ #?# # ???? | | ?# ##* G" ## / """ """ #?# + ???? | | ?# ## "" # !!# #?# # ???? | | ?# ## ## # ! #?# # ???? | | ?# ##*!! ## !!# #?# #### #??? | | ?# ##*!! *## ########################?#?#??? | | ## ##!! ## " w #?# #??????? | | # # ## "%" #?# T #??????? | | ? # ## " ### #??????? | | ?? ?# ? ## # #??????? | | ??????########## g / !#??????? | | ???????????????# Y # """ #??????? | | ???????????????## ##Y########### """ #?????? | | ????????????????# # gg ## """ #??????? | | ????????????????# #a """g"""" ## #??????? | | ????????????????# #m"""" """" ##########???????? | | ???????????????? #m"""" g"""x#????????????????? | | ??????????????? # g #????????????????? | | ?????????????? # !xsss #????????????????? | | ??????????????### # @= ! #????????????????? | | ????????????????# #############????????????????? | | ????????????????? ?????????????????????????????? | | ?????????????????????????????????????????????????? | | ?????????????????????g???????????????????????????? | | ???????????????????g?g???????????????????????????? | | ?????????????????????????????????????????????????? | | ???????????????????????b?????????????????????????? | | ?????????????????????????????????????????????????? | | ?????????????????????????????????????????????????? | | ?????????????????????????????????????????????????? | | ?????????????????????????????????????????????????? | | ?????????????????????????????????????????????????? | | ?????????????????????????????????????????????????? | | ?????????????????????????????????????????????????? | | ?????????????????????????????????????????????????? | | ?????????????????????????????????????????????????? | | ?????????????????????????????????????????????????? | | ?????????????????????????????????????????????????? | | ?????????????????????????????????????????????????? | | ?????????????????????????????????????????????????? | | ?????????????????????????????????????????????????? | | ?????????????????????????????????????????????????? | | ?????????????????????????????????????????????????? | | ?????????????????????????????????????????????????? | +----------------------------------------------------+ Best States ------------- Heat Dissipation 59 Energy Generation 14 Energy Capacity 265 Matter Stores 300 Matter Capacity 300 Sight Range 18 Terrain Scan Range 16 Terrain Scan Density 10 ECM Strength 1 Armor Coverage 300 Evasion (%) 63 Targeting Accuracy 5 Particle Charging 15 Relay Coupler Types 1 Relay Coupler Value 34 Authchip Count 5 Item Schematics ----------------- Datajack | -8/Materials | Scanalyzed Core Shielding | -8/Materials | Extracted Hacking Suite | -8/Materials | Extracted Hrd. Medium Armor Plating | -8/Materials | Extracted Axe | -8/Materials | Extracted Gravmag System | -8/Materials | Scanalyzed Imp. Datajack | -8/Materials | Scanalyzed Arm. Wheel | -8/Materials | Scanalyzed ECM Suite | -8/Materials | Scanalyzed Imp. Ion Engine | -8/Materials | Scanalyzed Sml. Battery | -8/Materials | Extracted Robot Schematics ------------------ None Fabricated ------------ Nothing Repaired ---------- Imp. Datajack | 99% | -8/Materials | Broken Alien Tech Used ----------------- None Achievements -------------- None Challenges ------------ None Game ------ Seed CooledBattleObliterator Manual? 0 Play Time 01:50:48 Cumulative 47.2 hours Start 2025.07.02 @ 16:27:20 End 2025.07.02 @ 18:32:11 Sessions 1 Manual Loads 0 Difficulty Rogue Special Mode None Game No. 31 Rogue 31 Adventurer 0 Explorer 0 Win Type - Total 0 Types 0/0/0/0/0/0/0/0/0/0 Lore% 20 Gallery% 31 Achievement% 31 Wizard Run 0 Options --------- Layout 1 ASCII 0 Keyboard 0 Movement Mouse Keybinds 0 Fullscreen 2 Font 32/SmallcapsGlow Map View 50x35 Zoom Use 0% Tactical HUD 0 Map Filters NONE Filters NONE Steam 1 RUN: 4240f422-480c-404b-bd15-ce3a8f555750